Cogmind - Beta 14 @@@ ROGUE MODE // 2024.10.20 @ 11:32:02 Player: Spoing Result: Destroyed by S-10 Pest with Light Assault Rifle Performance ------------- Evolutions (1) 500 Regions Visited (4) 800 Robots Destroyed (26) 130 Value Destroyed (601) 601 Prototype IDs (1) 20 Alien Tech Used (0) 0 Bonus (17) 17 TOTAL SCORE: 2068 Bonus ------- High Alert Combat Kills 17 Cogmind --------- Core Integrity 0/400 Matter 300/300 Energy 96/100 System Corruption 0% Temperature Cool (0) Movement Rolling (110) Ox2 Location -9/Mines Parts ------- > --- POWER (1) -------- (None) > --- PROPULSION (3) --- Wheel > --- UTILITY (3) ------ Large Storage Unit Structural Scanner Core Shielding > --- WEAPON (2) ------- Katana > --- INVENTORY (15) --- Light Nuclear Core Light Nuclear Core Light Nuclear Core Flight Unit Flight Unit Heat Sink Medium Storage Unit Weight Redist. System Weight Redist. System Structural Scanner Faulty Experimental Sensor Array Mining Laser Maul Peak State ------------ > --- POWER ------------ (None) > --- PROPULSION ------- Improved Aluminum Leg > --- UTILITY ---------- Large Storage Unit Structural Scanner Experimental Sensor Array > --- WEAPON ----------- Katana > --- INVENTORY -------- Light Nuclear Core Light Nuclear Core Light Nuclear Core Flight Unit Flight Unit Heat Sink Medium Storage Unit Weight Redist. System Weight Redist. System Structural Scanner Core Shielding Mining Laser Maul [Rating: 18] Favorites ----------- Power Ion Engine Engine Ion Engine Propulsion Compact Wheel Leg Aluminum Leg Wheel Compact Wheel Utility Large Storage Unit Device Structural Scanner Storage Large Storage Unit Protection Core Shielding Weapon Autogun Ballistic Gun Autogun Launcher Rocket Launcher Impact Weapon Maul Slashing Weapon Katana Build | -11 -10 -10 -9 -9 ------- Run | Yrd Mat Min Mat Min Slots Evolved 2 | . . . 2 . Power . | . . . . . Propulsion 1 | . . . 1 . Utility 1 | . . . 1 . Weapon . | . . . . . Parts Attached 31 | 5 5 1 11 9 Power 3 | 1 . . 2 . Engine 3 | 1 . . 2 . Core . | . . . . . Reactor . | . . . . . Propulsion 7 | 1 1 1 2 2 Treads . | . . . . . Leg 3 | . . . 2 1 Wheel 4 | 1 1 1 . 1 Hover . | . . . . . Flight . | . . . . . Utility 8 | 1 2 . 1 4 Device 4 | . 1 . 1 2 Storage 2 | 1 1 . . . Processor . | . . . . . Hackware . | . . . . . Protection 2 | . . . . 2 Artifact . | . . . . . Weapon 13 | 2 2 . 6 3 Energy Gun . | . . . . . Energy Cannon . | . . . . . Ballistic Gun 8 | 2 2 . 4 . Ballistic Cannon . | . . . . . Launcher 3 | . . . 2 1 Special Weapon . | . . . . . Impact Weapon 1 | . . . . 1 Slashing Weapon 1 | . . . . 1 Piercing Weapon . | . . . . . Special Melee Weapon . | . . . . . Unidentified Prototypes 1 | . . . . 1 Parts Lost 12 | . . 1 6 5 Power 1 | . . . 1 . Propulsion 5 | . . 1 3 1 Utility 2 | . . . 1 1 Weapon 4 | . . . 1 3 Highest Loss Streak 4 | . . 1 4 3 To Critical Strikes . | . . . . . Average Slot Usage (%) 70 | . 89 98 84 48 Engine 5 | . 14 14 7 . Leg 5 | . . . 7 8 Wheel 11 | . 28 26 14 . Device 14 | . 4 14 22 11 Storage 11 | . 14 14 11 11 Protection 1 | . . . . 4 Ballistic Gun 14 | . 28 28 21 1 Slashing Weapon 3 | . . . . 8 Peak Build Rating 18 | 5 11 11 15 18 Average Rating 11 | 2 9 10 12 11 On Entrance 7 | . 5 11 11 9 Naked Turns . | . . . . . Heaviest Build 37 | 14 32 32 37 27 Greatest Support 32 | 16 32 32 32 23 Greatest Overweight (x) 7 | . . 1 2 7 Average Overweight (x) 1 | . . . 1 2 Largest Inventory Capacity 15 | 8 15 15 15 15 Average Capacity 14 | 6 12 15 15 15 Most Carried 15 | 7 15 15 15 14 Average Carried 12 | 4 9 14 14 12 Final Capacity 15 | 8 15 15 15 15 Final Carried 15 | 5 15 15 13 13 Class Distribution -------------------- 66% | Mutant 33% | Infiltrator-Mutant Dominant Class ---------------- Mutant | -10/Materials Mutant | -10/Mines Infiltrator-Mutant | -9/Materials Mutant | -9/Mines Resources | -11 -10 -10 -9 -9 ----------- Run | Yrd Mat Min Mat Min Matter Collected 803 | 249 51 85 194 224 Remotely . | . . . . . Salvage Created 599 | . . 72 404 123 Parts 44 | . . 3 33 8 Haulers Intercepted . | . . . . . Recyclers Shooed . | . . . . . Parts Field Recycled . | . . . . . Retrieved Matter . | . . . . . Parts Self-Destructed . | . . . . . Prevented . | . . . . . Kills | -11 -10 -10 -9 -9 ------- Run | Yrd Mat Min Mat Min Combat Hostiles Destroyed 18 | . . 2 11 5 Melee 3 | . . . . 3 Guns 8 | . . 2 6 . AOE 6 | . . . 5 1 Classes Destroyed 10 | . . 1 8 1 Worker 2 | . . . 1 1 Builder 2 | . . . 2 . Tunneler 1 | . . . 1 . Recycler 1 | . . . 1 . Operator 1 | . . . 1 . Watcher 1 | . . . 1 . Swarmer 9 | . . . 6 3 Grunt 6 | . . 2 3 1 Duelist 1 | . . . . 1 Sentry 2 | . . . 2 . Best Kill Streak 12 | . . 2 12 2 Combat Bots Only 7 | . . 2 7 2 Max Kills in Single Turn 4 | . . 1 4 1 Gunslinging 1 | . . . 1 . Exploded 2 | . . . 2 1 Melee 1 | . . . . 1 Uniques/NPCs Destroyed . | . . . . . Combat | -11 -10 -10 -9 -9 -------- Run | Yrd Mat Min Mat Min Hostile Shots Fired 152 | . . 18 98 36 Missed 45 | . . 3 33 9 Damage Taken 1576 | . . 209 1000 367 Core 436 | . . 31 212 193 Absorbed by Shields . | . . . . . Redirected to Shielding 8 | . . . . 8 Core Remaining (%) 93 | 100 . 87 . . Volleys Fired 42 | . . 10 29 3 Largest 2 | . . 2 2 2 Hottest 46 | . . 46 46 46 Shots Fired 76 | . . 20 51 5 Gun 69 | . . 20 45 4 Cannon . | . . . . . Launcher 7 | . . . 6 1 Special . | . . . . . Kinetic 69 | . . 20 45 4 Thermal . | . . . . . Explosive 7 | . . . 6 1 Electromagnetic . | . . . . . Robot Hit Streak 8 | . . 4 8 4 Robot Miss Streak 2 | . . 1 2 1 Penetration Max . | . . . . . Secondary Targets 2 | . . 1 1 . Max Gunslinging Chain 1 | . . 1 1 . Shots Hit Robots 66 | . . 14 37 15 Core Hits 33 | . . 5 24 4 Critical Kills . | . . . . . Critical Parts Destroyed 1 | . . . . 1 Critical Strikes 1 | . . . . 1 Smash 1 | . . . . 1 Melee Attacks 17 | . . . . 17 Impact 13 | . . . . 13 Slashing 4 | . . . . 4 Piercing . | . . . . . Sneak Attacks 1 | . . . . 1 Combat Hostiles . | . . . . . Follow-up Attacks . | . . . . . Damage Inflicted 1885 | . . 233 1052 600 Guns 811 | . . 233 534 44 Cannons . | . . . . . Explosions 650 | . . . 518 132 Melee 424 | . . . . 424 Ramming . | . . . . . Kinetic 811 | . . 233 534 44 Thermal 112 | . . . 112 . Explosive 538 | . . . 406 132 Electromagnetic . | . . . . . Impact 300 | . . . . 300 Slashing 124 | . . . . 124 Piercing . | . . . . . Highest Corruption . | . . . . . Average Corruption . | . . . . . Corruption Purged . | . . . . . Corruption Blocked . | . . . . . Overload Shots . | . . . . . Overflow Damage 318 | . . . 181 137 Projectiles . | . . . . . Explosions 222 | . . . 181 41 Melee 96 | . . . . 96 Knockbacks 1 | . . . . 1 Impact 1 | . . . . 1 Kinetic . | . . . . . Secondary . | . . . . . Self-Inflicted Damage 299 | . . . 251 48 Shots 5 | . . . 4 1 Rammed . | . . . . . Targets Rammed . | . . . . . Kicked . | . . . . . Crushed . | . . . . . Highest Temperature 77 | . . 77 47 . Average Temperature 32 | . . 47 10 . Received Heat Transfer 537 | . . 114 321 102 Siege Activations . | . . . . . Robots Corrupted 1 | . . . . 1 Combat Hostiles 1 | . . . . 1 Parts Fried . | . . . . . Impact Corruptions 2 | . . . . 2 Robots Melted . | . . . . . Combat Hostiles . | . . . . . Parts Melted . | . . . . . Heat Transferred 50 | . . . 50 . Parts Sabotaged . | . . . . . Parts Stolen . | . . . . . Parts Stripped . | . . . . . Power Chain Reactions . | . . . . . Alert | -11 -10 -10 -9 -9 ------- Run | Yrd Mat Min Mat Min Peak Influence 527 | . 14 50 527 247 Initial 149 | . . 5 19 149 Average 124 | . 5 26 185 141 Maximum Alert Level 2 | . . . 2 1 Low Security (%) 75 | 100 100 100 66 68 Level 1 22 | . . . 29 31 Level 2 1 | . . . 3 . Level 3 . | . . . . . Level 4 . | . . . . . Level 5 . | . . . . . High Security . | . . . . . Max Security . | . . . . . Squads Dispatched 3 | . 1 . 2 . Investigation 1 | . 1 . . . Extermination . | . . . . . Reinforcement 2 | . . . 2 . Assault . | . . . . . Garrison . | . . . . . Intercept . | . . . . . Searches Triggered . | . . . . . Construction Impeded . | . . . . . Haulers Reinforced . | . . . . . Active Scanning Responses . | . . . . . Cargo Convoy Interrupts . | . . . . . Stealth | -11 -10 -10 -9 -9 --------- Run | Yrd Mat Min Mat Min Distress Signals 2 | . . . 2 . Communications Jammed . | . . . . . Distress Signals . | . . . . . Times Spotted 33 | . . 2 23 8 Peak Tracking Total 6 | . . 2 6 4 Tactical Retreats 3 | . . . 1 2 Traps | -11 -10 -10 -9 -9 ------- Run | Yrd Mat Min Mat Min Traps Triggered . | . . . . . Indirectly . | . . . . . Trap Hack Attempts . | . . . . . Triggered . | . . . . . Disarmed . | . . . . . Reprogrammed . | . . . . . Reused . | . . . . . Traps Extracted . | . . . . . Installed . | . . . . . Triggered . | . . . . . Machines | -11 -10 -10 -9 -9 ---------- Run | Yrd Mat Min Mat Min Machines Disabled 10 | . . . 9 1 Max in Single Turn 6 | . . . 6 1 Machines Repaired . | . . . . . Machines Dismantled . | . . . . . Machines Sabotaged . | . . . . . Overloaded Fab Kills . | . . . . . Hacking | -11 -10 -10 -9 -9 --------- Run | Yrd Mat Min Mat Min Machines Accessed 8 | . 3 . 4 1 Terminals 8 | . 3 . 4 1 Fabricators . | . . . . . Repair Stations . | . . . . . Recycling Units . | . . . . . Scanalyzers . | . . . . . Garrison Access . | . . . . . Total Hacks 24 | . 6 . 13 5 Successful 10 | . 2 . 6 2 Failed 14 | . 4 . 7 3 Catastrophic 4 | . 1 . 1 2 Database Lockouts . | . . . . . Manual 22 | . 6 . 11 5 Terminals 24 | . 6 . 13 5 Fabricators . | . . . . . Repair Stations . | . . . . . Recycling Units . | . . . . . Scanalyzers . | . . . . . Garrison Access . | . . . . . Terminal Hacks 6 | . 2 . 3 1 Branch Access Points 2 | . 1 . 1 . Terminal Index 3 | . 1 . 1 1 Locate Traps 1 | . . . 1 . Fabricator Hacks . | . . . . . Repair Station Hacks . | . . . . . Recycling Unit Hacks . | . . . . . Scanalyzer . | . . . . . Garrison Access Hacks . | . . . . . Unauthorized Hacks 4 | . . . 3 1 Terminals 4 | . . . 3 1 Botnet 4 | . . . 3 1 Fabricators . | . . . . . Repair Stations . | . . . . . Recycling Units . | . . . . . Scanalyzers . | . . . . . Garrison Access . | . . . . . Data Cores Recovered . | . . . . . Used . | . . . . . Hacking Detections 7 | . 2 . 4 1 Full Trace Events 1 | . 1 . . . Feedback Events . | . . . . . Feedback Blocked . | . . . . . Robot Schematics Acquired . | . . . . . Robots Built . | . . . . . Authchips . | . . . . . Time . | . . . . . Total Robot Build Rating . | . . . . . Part Schematics Acquired . | . . . . . Parts Built . | . . . . . Authchips . | . . . . . Time . | . . . . . Total Part Build Rating . | . . . . . Parts Repaired . | . . . . . Time . | . . . . . Parts Recycled . | . . . . . Recycled Matter . | . . . . . Retrieved Matter . | . . . . . Retrieved Components . | . . . . . Parts Scanalyzed . | . . . . . Part Schematics Acquired . | . . . . . Parts Damaged . | . . . . . Bothacking | -11 -10 -10 -9 -9 ------------ Run | Yrd Mat Min Mat Min Used RIF Installer . | . . . . . Robots Hacked . | . . . . . Non-combat . | . . . . . Combat . | . . . . . Robot Hacks Applied . | . . . . . Relay Couplers Released . | . . . . . Fabnet Peak Effective % . | . . . . . Robots Rewired . | . . . . . Allies Hacked . | . . . . . Hacks Repelled . | . . . . . Allies | -11 -10 -10 -9 -9 -------- Run | Yrd Mat Min Mat Min Total Allies . | . . . . . Largest Group . | . . . . . Highest-Rated Group . | . . . . . Highest-Rated Ally . | . . . . . Total Orders . | . . . . . Ally Attacks . | . . . . . Total Damage . | . . . . . Kills . | . . . . . Allies Corrupted . | . . . . . Allies Melted . | . . . . . Intel | -11 -10 -10 -9 -9 ------- Run | Yrd Mat Min Mat Min Robot Analysis Total . | . . . . . Derelict Logs Recovered 1 | . . 1 . . Drone Launches . | . . . . . Drone Recoveries . | . . . . . Exploration | -11 -10 -10 -9 -9 ------------- Run | Yrd Mat Min Mat Min Turns Passed 1666 | 44 193 179 551 699 Spaces Moved 885 | 37 170 140 258 280 Core 66 | 13 . . . 53 Treads . | . . . . . Legs 291 | . . . 102 189 Wheels 528 | 24 170 140 156 38 Hover . | . . . . . Flight . | . . . . . Fastest Speed 50 | 50 100 100 115 110 Average Speed 160 | 82 100 100 175 222 Slowest Speed 400 | 100 100 115 270 400 Overloaded Moves . | . . . . . Propulsion Burnouts . | . . . . . Robots Hopped . | . . . . . Cave-ins Triggered . | . . . . . Exploration Rate (%) 34 | 3 29 29 41 68 Regions Visited 4 Branch Regions 2 Pre-discovered Areas 1 | . . . . 1 Known Exits Taken 2 | . 1 . 1 . Unknown Exits Taken 2 | 1 . 1 . . Scrap Searched 2 | . . . . 2 Spaces Dug . | . . . . . Terrain Destroyed 91 | . . . 83 8 Melee . | . . . . . Projectile . | . . . . . AOE 91 | . . . 83 8 Terrain Rammed . | . . . . . Walls Destroyed . | . . . . . Machines Disabled . | . . . . . Actions | -11 -10 -10 -9 -9 --------- Run | Yrd Mat Min Mat Min Total 1038 | 49 193 164 314 318 Wait 16 | . . 7 7 2 Move 881 | 36 169 139 257 280 Hop . | . . . . . Pick Up 38 | 8 15 4 5 6 Fast Attach 4 | 2 1 . 1 . Attach 15 | 3 2 1 3 6 Detach . | . . . . . Swap 12 | . 2 . 7 3 Drop 13 | . 4 3 5 1 Fire 42 | . . 10 29 3 Melee 17 | . . . . 17 Ram . | . . . . . Kick . | . . . . . Crush . | . . . . . Escape Stasis . | . . . . . Rewire . | . . . . . Trap . | . . . . . Miscellaneous . | . . . . . Route ------- -11/Scrapyard -10/Materials -10/Mines -9/Materials (discovered 3 exits: Mat / *Min x2) -9/Mines (discovered 2 exits: *Mat x2) History --------- Turn | Location | Event 11 | -11/Scrapyard | Discovered new exit (range 14) 45 | -11/Scrapyard | Entered Materials 207 | -10/Materials | Discovered new exit (range 16) 214 | -10/Materials | Identified exit to Mines 238 | -10/Materials | Entered Mines 239 | -10/Mines | Assembled infested the area 244 | -10/Mines | Assisted by a Guerilla fighting off Assembled 303 | -10/Mines | Learned 2 Materials zone layouts 318 | -10/Mines | Build established: Mutant 408 | -10/Mines | Received a Rocket Launcher from a helpful Derelict 410 | -10/Mines | Discovered new exit (range 7) 417 | -10/Mines | Entered Materials 417 | -9/Materials | Evolved 2 slots: Propulsion x1, Utility x1 418 | -9/Materials | Identified exit to Materials 568 | -9/Materials | Discovered new exit (range 8) 704 | -9/Materials | Build established: Infiltrator-Mutant 822 | -9/Materials | Destroyed 7 combat bots 826 | -9/Materials | Lost 4 parts (1p2n1w) 905 | -9/Materials | Identified exit to Mines 962 | -9/Materials | Core integrity fell below 50% 968 | -9/Materials | Entered Mines 1058 | -9/Mines | Core integrity fell below 20% 1078 | -9/Mines | Lost 3 parts (1u2w) 1128 | -9/Mines | Discovered exit to Materials (range 6) 1204 | -9/Mines | Discovered exit to Materials (range 9) 1265 | -9/Mines | Build established: Mutant 1314 | -9/Mines | Learned location of Storage (-8) 1399 | -9/Mines | Found a damaged Exp. Sensor Array with a note attached 1402 | -9/Mines | Found Prototype Device 1403 | -9/Mines | Identified Exp. Sensor Array 1667 | -9/Mines | Destroyed by S-10 Pest with Light Assault Rifle Last Messages --------------- Imp. Aluminum Leg broken. Faulty integration triggers power surge. K-01 Serf collects debris. Dropped Broken Imp. Aluminum Leg. R-06 Scavenger collects Broken Imp. Aluminum Leg. K-01 Serf collects debris. Sneak attack on K-01 Serf. Destroyed Wheel. K-01 Serf destroyed. Acquired 20 matter. K-01 Serf collects debris. Acquired Wheel. Searching scrap... Found Sml. Laser. Found 50 Matter. Acquired 10 matter. Destroyed Flight Unit. S-10 Pest destroyed. Acquired 10 matter. Map ----- +----------------------------------------------------+ | # ##### ##?## ##??????????????? | | # #??### ######### ##??????????????? | | #??#### ######### ###??????????????? | | " #???### ######## ###???????????????? | | # "" ###### ##### ####???????????????? | | # ###### ### ###????????????????? | | < ## #####???????????????? | | # ## #### ######??????????????? | | ## ##### ##### ####?????????????? | | ## #???????### #### ####?????#####??? | | #?????### ###### ##############?? | | #?????## ######### ######## ###?? | | ## #?????## ###??##### #### ##?? | | ?? #?????## ##??????### ## ##?? | | ?? #?????### ###???????## ###?? | | ?? #?????######????????### ######??? | | ??? #??????####?????????#### #####????? | | ??? #????????????????????#### ###??????? | | ??? #?????????????????????###### ##???????? | | ??? #??????????????????????###### * ######????? | | ??????????????????????????????##### %########???? | | ???????????????????????????????##### ### ###???? | | ?????????????????????????????????### ##???? | | ?????????????????????## ############ [ ##???? | | ?????????????????????##s#############%# ###??? | | ?????????????????????## s@%[ ##### ## ###?? | | ?????????????????????#### ##### ##### ### ##?? | | ?????????????????????#### ##### ##### #### ###?? | | ???????????????????????## ##?## ### #########?? | | ??????????????????????? ##?## ### ####?#####??? | | ???????????????????????? #?## ### ####????????? | | ???????????????????????? #?## ### ##??????????? | | ???????????????????????? ##?## ##??????????? | | ???????????????????????? ##?###### ##??????????? | | ???????????????????????? #?###### ##??????????? | | ??????????????????????? ?????#### ####????????? | | ??????????????????????? ?????#### ####????????? | | ??????????????????????# ????## ##????????? | | ??????????????????????#####????## ##????????? | | ??????????????????????#####????## ##????????? | | ???????????????????????????????## """##????????? | | ???????????????????????????????## """##????????? | | ???????????????????????????????## """##????????? | | ???????????????????????????????## ##????????? | | ???????????????????????????????#########????????? | | ???????????????????????????????#########????????? | | ????????????????????????????????????????????????? | | ????????????????????????????????????????????????? | | ????????????????????????????????????????????????? | | | +----------------------------------------------------+ Best States ------------- Heat Dissipation 28 Energy Generation 12 Energy Capacity 265 Matter Stores 300 Matter Capacity 300 Sight Range 16 Terrain Scan Density 10 ECM Strength 1 Core Shielding 20 Evasion (%) 55 Item Schematics ----------------- None Robot Schematics ------------------ None Fabricated ------------ Nothing Alien Tech Used ----------------- None Achievements -------------- None Challenges ------------ None Game ------ Seed BraceMetafiberThrower Manual? 0 Play Time 00:20:33 Cumulative 29.4 hours Start 2024.10.20 @ 11:12:04 End 2024.10.20 @ 11:32:02 Sessions 1 Manual Loads 0 Difficulty Rogue Special Mode None Game No. 32 Rogue 31 Adventurer 1 Explorer 0 Win Type - Total 0 Types 0/0/0/0/0/0/0/0/0 Lore% 16 Gallery% 25 Achievement% 27 Wizard Run 0 Options --------- Layout 1 ASCII 0 Keyboard 0 Movement Mouse Keybinds 0 Fullscreen 1 Font 32/SmallcapsGlow Map View 50x35 Zoom Use 0% Tactical HUD 0 Map Filters NONE Filters NONE Steam 1 RUN: 3e111550-7fe9-474a-bba4-01d660b77127